fUST/lending_fUST_20240104
["ID","MTS","AMOUNT","RATE_DAILY","PERIOD"]
[310048106,1704299068837,1376.3211399,0.000281,2]
[310048107,1704299068990,342.48956173,0.000281,2]
[310048108,1704299069670,166.16362772,0.00028099,2]
[310048109,1704299071284,190.72300866,0.000281,2]
[310048110,1704299072912,4643.11336362,0.0002529,2]
[310048111,1704299072934,2901.05169349,0.0002529,2]
[310048112,1704299076863,-853.74198806,0.000281,2]
[310048113,1704299077011,-17.42330588,0.000281,2]
[310048114,1704299077043,-255.16929721,0.000281,2]
[310048115,1704299077076,-163.75219479,0.000281,2]
[310048116,1704299077249,223.28919752,0.000281,2]
[310048117,1704299078080,194.10799266,0.000281,2]
[310048118,1704299078113,853.74198806,0.000281,2]
[310048119,1704299078149,267.14075103,0.000281,2]
[310048120,1704299078180,267.14075103,0.000281,2]
[310048121,1704299078583,-5000.0,0.000281,2]
[310048122,1704299078774,-5000.0,0.000281,2]
[310048123,1704299078880,-4187.86146407,0.000281,2]
[310048124,1704299079026,-812.13853593,0.000281,2]
[310048125,1704299079073,-5000.0,0.000281,2]
[310048126,1704299079162,-5000.0,0.000281,2]
[310048127,1704299079277,-5000.0,0.000281,2]
[310048128,1704299079377,-3820.07011647,0.000281,2]
[310048129,1704299080268,166.666666,0.00026695,2]
[310048130,1704299080521,166.666666,0.00027423,2]
[310048131,1704299082187,5000.0,0.000281,2]
[310048132,1704299082220,5000.0,0.000281,2]
[310048133,1704299082481,-5000.0,0.000281,2]
[310048134,1704299082690,-5000.0,0.000281,2]
[310048135,1704299082808,-831.85137104,0.000281,2]
[310048136,1704299084762,154.79876161,0.00028099,4]
[310048137,1704299092444,-5000.0,0.000281,2]
[310048138,1704299092490,-2932.20562033,0.000281,2]
[310048139,1704299104258,2629.9084742,0.00027195,2]
[310048140,1704299106838,151.31843755,0.00027141,2]
[310048141,1704299123378,18639.540237,0.00027185,2]
[310048142,1704299156148,-154.79876161,0.000281,2]
[310048143,1704299156181,-256.09501624,0.000281,2]
[310048144,1704299156366,-8.3855873,0.000281,2]
[310048146,1704299206321,1327.0422049,0.00027195,2]
[310048147,1704299220660,24900.0,0.00027195,2]
[310048148,1704299231143,-955.06633843,0.00028099,2]
[310048149,1704299231438,-19.49114976,0.00028099,2]
[310048150,1704299248079,-352.97355016,0.00028099,2]
[310048151,1704299248261,-7.20354184,0.00028099,2]
[310048152,1704299269509,-4900.0,0.00027195,2]
[310048153,1704299269670,-100.0,0.00027195,2]
[310048154,1704299283422,-200.0,0.00027213,2]
[310048155,1704299283464,-154.79876161,0.000281,4]
[310048156,1704299283504,-4645.20123839,0.000281,2]
[310048157,1704299283642,-3207.98723425,0.000281,2]
[310048158,1704299283807,1584.80241164,0.00028099,2]
[310048159,1704299290321,-3403.27547517,0.000281,2]
[310048160,1704299290425,-69.45460153,0.000281,2]
[310048161,1704299294164,-5000.0,0.00028099,2]
[310048162,1704299294448,-210.9786353,0.00028099,2]
[310048163,1704299295003,1412.41421533,0.00028099,2]
[310048164,1704299295271,-4810.74043199,0.000281,2]
[310048165,1704299295369,-98.17837616,0.000281,2]
[310048166,1704299295781,154.81422293,0.00026997,4]
[310048167,1704299297999,1819.06283426,0.00028099,2]
[310048168,1704299298719,292.44148742,0.00022,4]
[310048169,1704299298800,1490.24009016,0.00027202,2]
[310048170,1704299298934,1782.68157758,0.00027202,2]
[310048171,1704299298966,1782.68157758,0.00027202,2]
[310048172,1704299299154,-5000.0,0.00027202,2]
[310048173,1704299299276,-5000.0,0.00027202,2]
[310048174,1704299299449,-5000.0,0.00027202,2]
[310048175,1704299299567,-5000.0,0.00027202,2]
[310048176,1704299299683,-5000.0,0.00027202,2]
[310048177,1704299299799,-3227.84326678,0.00027202,2]
[310048178,1704299301554,-303.43587089,0.00028099,2]
[310048179,1704299301640,-6.19256879,0.00028099,2]
[310048180,1704299301672,-297.2433021,0.00028099,2]
[310048181,1704299301772,-5000.0,0.00028099,2]
[310048182,1704299301883,-4968.72956161,0.00028099,2]
[310048183,1704299303176,-5000.0,0.000281,2]
[310048184,1704299303316,31.27043839,0.00028099,2]
[310048185,1704299303350,526.51908496,0.00028099,2]
[310048186,1704299303390,-5000.0,0.000281,2]
[310048187,1704299303466,-5000.0,0.000281,2]
[310048188,1704299303572,-4632.2086524,0.000281,2]
[310048189,1704299303771,367.7913476,0.00026997,2]
[310048190,1704299303803,3534.48381276,0.00026997,2]
[310048191,1704299304725,250.0,0.00027195,2]
[310048192,1704299305216,1215.51618724,0.00028099,2]
[310048193,1704299305250,305.92377368,0.00028099,2]
[310048194,1704299307716,268.42168901,0.00022498,2]
[310048195,1704299309887,-2959.6112418,0.00028099,2]
[310048196,1704299309918,-2040.3887582,0.000281,2]
[310048197,1704299310090,-4803.70975594,0.000281,2]
[310048198,1704299310666,181.99452768,0.00026997,2]
[310048199,1704299310952,14.29571638,0.00025289,2]
[310048200,1704299310984,140.98220023,0.00025289,2]
[310048201,1704299311223,172.35065354,0.00028016,3]
[310048202,1704299311260,974.55748819,0.000281,2]
[310048203,1704299311632,285.30351426,0.000281,2]
[310048204,1704299311775,2851.90183335,0.00028099,2]
[310048205,1704299312731,154.81422293,0.00028099,2]
[310048206,1704299313610,800.2521155,0.00028099,2]
[310048207,1704299313643,955.06633843,0.00028099,2]
[310048208,1704299314082,-5000.0,0.00028099,2]
[310048209,1704299314367,-5000.0,0.00028099,2]
[310048210,1704299314452,-5000.0,0.00028099,2]
[310048211,1704299314638,-4047.6260526,0.00028099,2]
[310048212,1704299317814,-1437.11424731,0.00028099,5]
[310048213,1704299318171,-29.32886219,0.00028099,5]
[310048214,1704299318502,-1782.68157758,0.00028099,2]
[310048215,1704299318715,292.44148742,0.00022,4]
[310048216,1704299319154,-154.81422293,0.00027818,2]
[310048217,1704299319188,-36.38125668,0.00028099,2]
[310048218,1704299319224,-2987.48471004,0.00028099,2]
[310048219,1704299319411,-219.68524721,0.00028099,2]
[310048220,1704299319444,-247.78510582,0.00028099,2]
[310048221,1704299320694,1035.7977807,0.00027185,2]
[310048222,1704299322891,-2942.06803602,0.00028099,2]
[310048223,1704299323098,-60.04220482,0.00028099,2]
[310048224,1704299323129,-4939.95779518,0.00028099,2]
[310048225,1704299323213,-5000.0,0.00028099,2]
[310048226,1704299323399,-5000.0,0.00028099,2]
[310048227,1704299323509,-4692.25085722,0.00028099,2]
[310048228,1704299323544,-300.0,0.00028099,2]
[310048229,1704299323576,-7.74914278,0.00028099,2]
[310048230,1704299323695,-5000.0,0.00028099,2]
[310048231,1704299323795,-559.68125324,0.00027817,2]
[310048232,1704299323827,-4440.31874676,0.00028099,2]
[310048233,1704299323922,-817.90497417,0.00028099,2]
[310048234,1704299327834,-1491.0111617,0.00028099,2]
[310048235,1704299327871,62.11408499,0.00022496,2]
[310048236,1704299327899,350.5282598,0.00022496,2]
[310048237,1704299327943,-30.42879922,0.00028099,2]
[310048238,1704299329700,1460.58236248,0.00022496,2]
[310048239,1704299329731,3.83274858,0.00022496,2]
[310048240,1704299331336,-334.82877233,0.00028112,2]
[310048241,1704299331365,-154.81422293,0.00028112,2]
[310048242,1704299331394,-241.38085836,0.00028112,2]
[310048243,1704299331434,-349.13554864,0.00028112,2]
[310048244,1704299331463,-27.24655267,0.00028113,2]
[310048245,1704299331992,-535.07344683,0.00028099,2]
[310048246,1704299332302,-10.91986626,0.00028099,2]
[310048247,1704299332371,524.15358057,0.00026996,5]
[310048249,1704299332404,233.42578879,0.00026996,5]
[310048252,1704299332574,255.30140957,0.00028099,2]
[310048253,1704299333075,46.34624847,0.00028099,2]
[310048254,1704299333621,-5000.0,0.00028099,2]
[310048255,1704299333773,-4089.1986584,0.00028099,2]
[310048256,1704299333814,154.95346137,0.00028099,2]
[310048257,1704299336003,755.84788023,0.00028099,2]
[310048258,1704299336035,1063.21495403,0.00028099,2]
[310048259,1704299336736,1041.95065495,0.00028099,2]
[310048260,1704299336770,1041.95065495,0.00028099,2]
[310048261,1704299337088,-154.81422293,0.00027818,2]
[310048262,1704299337237,-1121.87814377,0.00028099,2]
[310048263,1704299337686,618.56145052,0.00028099,2]
[310048264,1704299338980,154.87190811,0.00028099,2]
[310048265,1704299339694,-300.0,0.00028099,2]
[310048266,1704299339728,-4700.0,0.00028099,2]
[310048267,1704299339839,-332.04798202,0.00028099,2]
[310048268,1704299340714,350.73463763,0.00022,4]
[310048269,1704299342997,-2301.3562429,0.00027114,2]
[310048270,1704299343027,-1240.8180223,0.00028099,2]
[310048271,1704299343176,-72.28927072,0.00028099,2]
[310048272,1704299343818,3469.88499448,0.00028099,7]
[310048273,1704299343849,3542.1742652,0.00028099,7]
[310048274,1704299344309,-5000.0,0.00028099,7]
[310048275,1704299344605,-5000.0,0.00028099,7]
[310048276,1704299344780,-5000.0,0.00028099,7]
[310048277,1704299344884,-5000.0,0.00028099,7]
[310048278,1704299344993,-5000.0,0.00028099,7]
[310048279,1704299345110,-5000.0,0.00028099,7]
[310048280,1704299345242,-5000.0,0.00028099,7]
[310048281,1704299345340,-5000.0,0.00028099,7]
[310048282,1704299345440,-5000.0,0.00028099,7]
[310048283,1704299345578,-5000.0,0.00028099,7]
[310048284,1704299345669,-5000.0,0.00028099,7]
[310048285,1704299345900,-5000.0,0.00028099,7]
[310048286,1704299345938,-5000.0,0.00028099,7]
[310048287,1704299345996,-5000.0,0.00028099,7]
[310048288,1704299346118,-5000.0,0.00028099,7]
[310048289,1704299346257,-5000.0,0.00028099,7]
[310048290,1704299346357,-5000.0,0.00028099,7]
[310048291,1704299346454,-5000.0,0.00028099,7]
[310048292,1704299346568,-5000.0,0.00028099,7]
[310048293,1704299346715,-5000.0,0.00028099,7]
[310048294,1704299347147,-57917.509,0.00028099,7]
[310048295,1704299356501,-155.23850399,0.00027818,2]
[310048296,1704299356527,-154.81422293,0.00028098,2]
[310048297,1704299356555,-443.1192458,0.00028098,2]
[310048298,1704299356595,-81.86505246,0.00028098,2]
[310048299,1704299356623,-610.99539259,0.00028098,2]
[310048301,1704299364116,-413.50609139,0.00027817,2]
[310048302,1704299364136,-154.81422293,0.00027817,2]
[310048303,1704299364157,-466.12469227,0.00028088,2]
[310048304,1704299364179,-8312.78,0.00028089,3]
[310048305,1704299364200,-7853.18847264,0.00028097,2]
[310048306,1704299364222,-68.38195259,0.00028098,2]
[310048307,1704299364244,-154.81422293,0.00028098,2]
[310048308,1704299364265,-2631.68489228,0.00028098,2]
[310048309,1704299364287,-118070.58827552,0.00028099,7]
[310048310,1704299364309,-241.8938802,0.00028099,2]
[310048311,1704299364330,-545.99331309,0.00028099,2]
[310048312,1704299364356,-618.56145052,0.00028099,2]
[310048313,1704299364377,-300.0,0.00028099,2]
[310048314,1704299364399,-154.81422293,0.00028099,2]
[310048315,1704299364420,-3385.202222,0.00028099,2]
[310048316,1704299364443,-1819.06283426,0.00028099,2]
[310048317,1704299364468,-170.1709713,0.00028109,2]
[310048318,1704299364491,-264.48060354,0.00028109,2]
[310048319,1704299364517,-612.96786415,0.00028109,2]
[310048320,1704299364538,-154.81422293,0.00028109,2]
[310048321,1704299364558,-399.38718748,0.00028109,2]
[310048322,1704299364579,-5076.05878035,0.0002811,2]
[310048323,1704299364604,-3732.74533379,0.0002811,2]
[310048324,1704299364625,-924.18644533,0.0002811,2]
[310048325,1704299364646,-553.25941224,0.0002811,2]
[310048326,1704299364668,-197.56859138,0.0002811,2]
[310048327,1704299364694,-1051.21541603,0.0002811,7]
[310048328,1704299364718,-343.43501932,0.00028111,2]
[310048329,1704299364739,-520.2185,0.00028111,2]
[310048330,1704299364761,-154.81422293,0.00028111,2]
[310048331,1704299364782,-253.17313502,0.00028111,2]
[310048332,1704299364802,-15185.30495486,0.00028112,2]
[310048333,1704299364823,-7932.20562033,0.00028112,2]
[310048334,1704299364845,-185.3725492,0.00028113,2]
[310048335,1704299364864,-223.69711736,0.00028113,2]
[310048336,1704299364885,-266.9913664,0.00028113,2]
[310048337,1704299364906,-2997.40556678,0.00028113,2]
[310048338,1704299364925,-2804.5410618,0.00028113,2]
[310048339,1704299364946,-309.61300308,0.00028114,2]
[310048340,1704299364966,-321.94449774,0.00028114,2]
[310048341,1704299364985,-154.84515485,0.00028114,2]
[310048342,1704299365004,-11617.23085306,0.00028114,2]
[310048343,1704299365098,-9214.62051798,0.00028114,2]
[310048344,1704299365119,-944.51958651,0.00028115,2]
[310048345,1704299365143,-154.81422293,0.00028115,4]
[310048346,1704299365163,-1734.34211695,0.00028115,2]
[310048347,1704299365185,-1678.44623893,0.00028115,2]
[310048348,1704299365205,-1029.00208641,0.00028116,2]
[310048349,1704299365228,-326.23488023,0.00028116,2]
[310048350,1704299365249,-360.177092,0.00028148,2]
[310048351,1704299365270,-166.666666,0.00028151,2]
[310048352,1704299365291,-154.86061617,0.00028171,2]
[310048353,1704299365315,-1019.46116191,0.00028171,2]
[310048354,1704299365337,-426.44423862,0.00028172,2]
[310048355,1704299365360,-272.20989188,0.00028183,2]
[310048356,1704299365381,-264.74772312,0.00028203,2]
[310048357,1704299365402,-1766.68967922,0.00028336,2]
[310048358,1704299365423,-184.76548466,0.00028336,2]
[310048359,1704299365526,-365.78147176,0.00028497,2]
[310048360,1704299365548,-166.666666,0.00028879,2]
[310048361,1704299365568,-222.193447,0.00029007,2]
[310048362,1704299365590,-347.08590208,0.00029397,2]
[310048363,1704299365611,-280.0,0.000295,30]
[310048364,1704299365632,-166.666666,0.00029606,2]
[310048365,1704299365652,-1320.81396188,0.00029967,2]
[310048366,1704299365675,-675.8919533,0.00029995,2]
[310048367,1704299365704,-11285.85093494,0.00029995,2]
[310048368,1704299365725,-667.10567805,0.00029995,2]
[310048369,1704299365744,-590.516407,0.00029995,2]
[310048370,1704299365765,-154.84515485,0.00029996,2]
[310048371,1704299365786,-20802.94450653,0.00029996,2]
[310048372,1704299365806,-328.2954028,0.00029996,2]
[310048373,1704299365826,-254.91008809,0.00029997,2]
[310048374,1704299365848,-1584.15548242,0.00029997,2]
[310048375,1704299365868,-250.04269304,0.00029997,2]
[310048376,1704299365887,-154.84515485,0.00029997,2]
[310048377,1704299365908,-176.29639192,0.00029997,2]
[310048378,1704299365928,-1171.19863995,0.00029997,2]
[310048379,1704299365948,-2356.92376556,0.00029997,2]
[310048380,1704299365969,-3164.14065451,0.00029997,2]
[310048381,1704299381737,-154.79876161,0.00026996,4]
[310048382,1704299381771,-627.29385946,0.00028097,2]
[310048383,1704299381806,-782.09262107,0.00028097,2]
[310048391,1704299406384,-154.79876161,0.00025287,4]
[310048392,1704299406414,-353.3116885,0.00027427,2]
[310048393,1704299406446,-305.2658758,0.00028097,2]
[310048394,1704299406486,-387.87964815,0.00028097,2]
[310048829,1704299441500,-154.79876161,0.00025287,4]
[310048830,1704299441510,-170.1709713,0.00026399,2]
[310048831,1704299441520,-360.177092,0.00026399,2]
[310048832,1704299441529,-853.04668333,0.000264,2]
[310048833,1704299441538,-625.75649176,0.00027103,2]
[310048836,1704299441659,-993.71002663,0.00027103,2]
[310048838,1704299441671,-618.43144661,0.00027103,2]
[310048840,1704299441681,-631.65233417,0.0002772,2]
[310048842,1704299441690,-6927.31,0.00028089,3]
[310048844,1704299441704,-2973.52677587,0.00028097,2]
[310048846,1704299441713,-343.43501932,0.00028097,2]
[310048848,1704299441726,-154.82969353,0.00028097,2]
[310048850,1704299441736,-3385.202222,0.00028097,2]
[310048852,1704299441747,-297.72458751,0.00028097,2]
[310048854,1704299441756,-223.19063326,0.00028097,2]
[310048857,1704299441766,-264.24263466,0.00028098,2]
[310048858,1704299441776,-89739.76370005,0.00028099,7]
[310048914,1704299442295,-520.2185,0.00026399,2]
[310048917,1704299442305,-154.79876161,0.00026399,2]
[310048919,1704299442315,-1678.44623893,0.00026399,2]
[310048920,1704299442324,-5772.76,0.00028089,3]
[310048923,1704299442334,-22399.37065436,0.00028099,7]
[310048925,1704299442344,-220.5623413,0.00028099,2]
[310048927,1704299442353,-619.8807871,0.00028099,2]
[310048929,1704299442363,-542.02553755,0.00028114,2]
[310048931,1704299442372,-620.58261671,0.00029106,2]
[310048933,1704299442382,-3472.7300767,0.00029395,2]
[310048935,1704299442391,-190.97216635,0.00029695,2]
[310048937,1704299442402,-2801.96518452,0.00029995,2]
[310048939,1704299442412,-2997.40556678,0.00029995,2]
[310048941,1704299442421,-271.2083445,0.00029995,2]
[310048943,1704299442431,-466.12469227,0.00029995,2]
[310048945,1704299442441,-154.79876161,0.00029995,2]
[310048947,1704299442450,-215.82722144,0.00029995,2]
[310048949,1704299442460,-15185.30495486,0.00029995,2]
[310048951,1704299442469,-7853.18847264,0.00029995,2]
[310048953,1704299442479,-261.47036705,0.00029995,2]
[310048955,1704299442488,-553.25941224,0.00029995,2]
[310048957,1704299442497,-859.47841956,0.00029995,2]
[310048959,1704299442506,-612.96786415,0.00029995,2]
[310048961,1704299442516,-20802.94450653,0.00029995,2]
[310048963,1704299442525,-1051.21541603,0.00029995,7]
[310048965,1704299442534,-253.17313502,0.00029995,2]
[310048967,1704299442543,-155.22214716,0.00029995,2]
[310048969,1704299442552,-154.8142353,0.00029996,2]
[310048971,1704299442561,-944.51958651,0.00029996,2]
[310048973,1704299442570,-233.4137136,0.00029996,2]
[310048975,1704299442579,-154.84515485,0.00029996,2]
[310048977,1704299442588,-462.83114446,0.00029996,2]
[310048979,1704299442598,-2631.68489228,0.00029996,2]
[310048981,1704299442607,-3732.74533379,0.00029996,2]
[310048983,1704299442617,-20831.85137104,0.00029996,2]
[310048985,1704299442626,-33606.21414233,0.00029997,2]
[310048987,1704299442635,-154.84515485,0.00029997,2]
[310048988,1704299442644,-2990.08384051,0.00029997,2]
[310048991,1704299442656,-2698.71304933,0.00029998,5]
[310048993,1704299442665,-6534.9223021,0.0003,4]
[310048994,1704299442675,-7025.05114454,0.0003,4]
[310048996,1704299442684,-462.6176876,0.0003,5]
[310048998,1704299442695,-355.0,0.0003,2]
[310049001,1704299442708,-12090.75444544,0.0003,2]
[310049003,1704299442717,-166.666666,0.00030334,2]
[310049004,1704299442726,-174.124156,0.00031141,2]
[310049007,1704299442736,-150.80395486,0.00032249,120]
[310049008,1704299442747,-150.80395486,0.00032907,30]
[310049010,1704299442758,-200.0,0.00032996,15]
[310049012,1704299442767,-172.35065353,0.00033128,6]
[310049015,1704299442777,-150.80395486,0.00033578,7]
[310049017,1704299442787,-1000.0,0.00034,7]
[310049018,1704299442796,-3014.51142191,0.00034,2]
[310049020,1704299442805,-150.80395486,0.00034264,4]
[310049022,1704299442814,-14333.63538519,0.00034444,4]
[310049024,1704299442824,-244.406309,0.00034521,2]
[310049026,1704299442833,-150.80395486,0.00034963,2]
[310049028,1704299442842,-590.27084275,0.00035,2]
[310049031,1704299442852,-1454.45537407,0.00035,14]
[310049033,1704299442863,-4177.42015254,0.00035,4]
[310049034,1704299442872,-157.0,0.00035452,2]
[310049036,1704299442881,-345.20843,0.00035616,120]
[310049039,1704299442891,-275.77612835,0.00035796,4]
[310049040,1704299442900,-244.406309,0.00035798,2]
[310049042,1704299442910,-26237.36851617,0.00036,4]
[310049044,1704299442920,-280.0,0.00036295,15]
[310049052,1704299442982,-1255.85848892,0.00036518,4]
[310049054,1704299442992,-808.70110653,0.00037012,5]
[310049056,1704299443002,-4584.10600777,0.00037065,2]
[310049058,1704299443011,-244.406309,0.00037075,2]
[310049061,1704299443022,-322.38366746,0.00038034,4]
[310049063,1704299443032,-172.35065353,0.0003824,8]
[310049064,1704299443041,-244.406309,0.00038352,2]
[310049066,1704299443051,-500.0,0.00038356,2]
[310049069,1704299443060,-207.0,0.0003874,2]
[310049070,1704299443071,-1245.95452284,0.000388,45]
[310049073,1704299443081,-150.80395486,0.00038848,2]
[310049076,1704299443091,-250.16566464,0.00038848,2]
[310049078,1704299443101,-1521.65740838,0.00038902,2]
[310049082,1704299443111,-784.12479265,0.00038902,2]
[310049085,1704299443121,-559.27169834,0.00038902,2]
[310049088,1704299443130,-329.14651184,0.00038959,4]
[310049091,1704299443140,-2366.79522929,0.0003896,4]
[310049092,1704299443150,-1061.09102681,0.0003896,4]
[310049095,1704299443161,-162.4738658,0.0003896,4]
[310049097,1704299443171,-345.28721276,0.00038961,2]
[310049101,1704299443185,-127.26740068,0.00038961,2]
[310049104,1704299443194,-500.0,0.00038961,2]
[310049107,1704299443204,-450.9677806,0.00038961,2]
[310049110,1704299443213,-1741.03,0.00038961,2]
[310049113,1704299443224,-1741.03,0.00038961,2]
[310049116,1704299443233,-1741.03,0.00038961,2]
[310049120,1704299443243,-1741.03,0.00038961,2]
[310049125,1704299443253,-1741.03,0.00038961,2]
[310049130,1704299443264,-1741.03,0.00038961,2]
[310049134,1704299443274,-1741.03,0.00038961,2]
[310049139,1704299443285,-1741.04,0.00038961,2]
[310049143,1704299443294,-378.93641447,0.00038961,4]
[310049146,1704299443304,-73832.30699157,0.00038962,2]
[310049150,1704299443316,-307.05277143,0.00038962,2]
[310049164,1704299443348,-22001.30567941,0.00038962,2]
[310049169,1704299443361,-2443.1194624,0.00038962,2]
[310049173,1704299443373,-7627.16893474,0.00038962,2]
[310049225,1704299443552,-336.92095555,0.00026398,2]
[310049233,1704299443572,-7595.28466478,0.00026398,2]
[310049236,1704299443582,-636.767531,0.00026901,2]
[310049240,1704299443591,-2922.94780422,0.00028098,2]
[310049257,1704299443663,-369.73000002,0.00028098,2]
[310049260,1704299443675,-1783.38097611,0.00028098,2]
[310049263,1704299443684,-1320.81396188,0.000297,2]
[310049266,1704299443694,-96418.66624622,0.00038962,2]
[310049349,1704299444120,-1438.41580148,0.00038962,2]
[310049350,1704299444132,-3450.86822415,0.00038962,2]
[310049351,1704299444143,-65255.51948111,0.00038962,2]
[310049352,1704299444155,-1000.0,0.00038962,2]
[310049353,1704299444221,-3472.7300767,0.00026398,2]
[310049354,1704299444231,-154.79876161,0.00026398,2]
[310049355,1704299444241,-343.43501932,0.00026398,2]
[310049356,1704299444253,-738.29275599,0.00028097,2]
[310049357,1704299444262,-179.33444264,0.00028784,2]
[310049359,1704299444274,-457.43308836,0.00028784,2]
[310049361,1704299444283,-1490.96324402,0.00038962,2]
[310049395,1704299444608,-734.61316347,0.00038962,2]
[310049397,1704299444617,-261.35423672,0.00039,4]
[310049399,1704299444626,-500.0,0.00039049,4]
[310049401,1704299444635,-500.0,0.00039049,4]
[310049403,1704299444645,-15.37061006,0.00039049,4]
[310049637,1704299446782,-612.96786415,0.00026398,2]
[310049639,1704299446792,-2997.40556678,0.00026398,2]
[310049641,1704299446802,-20802.94450653,0.00027102,2]
[310049643,1704299446811,-20831.85137104,0.00027102,2]
[310049645,1704299446822,-9901.73084191,0.00028097,2]
[310049647,1704299446831,-484.62938994,0.00039049,4]
[310049649,1704299446841,-613.6515129,0.00039049,4]
[310049651,1704299446851,-163.43794403,0.00039049,4]
[310049653,1704299446864,-3.60379856,0.00039049,4]
[310049655,1704299446873,-203.60198231,0.00039049,4]
[310049658,1704299446883,-356.76253286,0.00039049,4]
[310049661,1704299446892,-500.0,0.00039049,4]
[310049664,1704299446902,-500.0,0.00039049,4]
[310049667,1704299446915,-183.54745977,0.00039049,4]
[310049670,1704299446924,-500.0,0.00039049,4]
[310049673,1704299446934,-283.53276806,0.00039049,7]
[310049676,1704299446943,-213.22583545,0.00039049,7]
[310049679,1704299446952,-500.0,0.00039049,7]
[310049682,1704299446961,-72430.36198926,0.0003905,4]
[310049699,1704299447038,-5820.61166855,0.0003905,4]
[310049702,1704299447048,-460.70426831,0.0003906,3]
[310049705,1704299447058,-155.37485297,0.0003906,4]
[310049708,1704299447068,-641.96499442,0.0003906,4]
[310049711,1704299447078,-309.53569646,0.0003906,4]
[310049714,1704299447087,-154.81422293,0.0003906,4]
[310049717,1704299447097,-155.95620918,0.0003906,4]
[310049720,1704299447107,-155.33259091,0.0003906,4]
[310049733,1704299447168,-1151.3045086,0.0003906,4]
[310049736,1704299447179,-783.278067,0.0003906,4]
[310049739,1704299447189,-154.81422293,0.0003906,4]
[310049742,1704299447199,-313.71032376,0.0003906,4]
[310049745,1704299447210,-155.18994402,0.0003906,30]
[310049748,1704299447221,-2257.55354568,0.0003906,4]
[310049751,1704299447231,-4779.79120143,0.0003906,30]
[310049754,1704299447241,-155.61952728,0.0003906,4]
[310049757,1704299447253,-154.90700632,0.0003906,4]
[310049760,1704299447262,-173.94845341,0.0003906,4]
[310049763,1704299447272,-3538.7366841,0.0003906,2]
[310049766,1704299447282,-256.57685411,0.00039062,4]
[310049769,1704299447292,-165.2029838,0.00039062,4]
[310049771,1704299447302,-202.06554559,0.00039062,4]
[310049773,1704299447313,-408.84089293,0.00039062,2]
[310049775,1704299447323,-322.3814999,0.00039062,3]
[310049777,1704299447333,-150.0,0.0003915,60]
[310049779,1704299447342,-152.15,0.0003915,7]
[310049781,1704299447351,-150.0,0.0003915,60]
[310049783,1704299447361,-150.0,0.0003916,7]
[310049785,1704299447371,-150.0,0.0003916,60]
[310049787,1704299447381,-150.0,0.0003917,7]
[310049789,1704299447390,-150.0,0.0003917,60]
[310049791,1704299447400,-150.0,0.00039174,60]
[310049793,1704299447414,-150.0,0.00039184,60]
[310049795,1704299447425,-150.0,0.00039184,60]
[310049797,1704299447435,-150.0,0.00039194,60]
[310049799,1704299447445,-150.0,0.00039194,60]
[310049801,1704299447456,-11388.34224189,0.00039204,2]
[310049803,1704299447466,-3416.50267256,0.00039204,2]
[310049805,1704299447475,-645.30483663,0.00039215,2]
[310049807,1704299447484,-1140.14560613,0.00039245,2]
[310049809,1704299447495,-199.05846043,0.00039245,2]
[310049812,1704299447506,-278.68184459,0.00039245,2]
[310049814,1704299447516,-301.60790972,0.000395,4]
[310049816,1704299447526,-244.406309,0.0003963,2]
[310049818,1704299447535,-391.0,0.00039925,30]
[310049819,1704299447545,-4031.97114424,0.0003999,4]
[310049821,1704299447555,-1224.58434987,0.0004,14]
[310049822,1704299447565,-371.04881992,0.0004,4]
[310049823,1704299447574,-1278.30335464,0.0004,4]
[310049824,1704299447584,-2898.87837235,0.0004,30]
[310049825,1704299447593,-603.21581943,0.00040164,7]
[310049826,1704299447603,-2237.897965,0.00040654,2]
[310049827,1704299447612,-166.77710976,0.00040839,4]
[310049828,1704299447622,-8222.43726441,0.00040919,2]
[310049829,1704299447632,-724.4305136,0.00041108,30]
[310049830,1704299447641,-1206.43163887,0.00041181,30]
[310049831,1704299447651,-345.20843,0.00041553,120]
[310049832,1704299447665,-14002.13181325,0.00042,2]
[310049833,1704299447675,-6469.77776175,0.00042,2]
[310049834,1704299447685,-222.23814354,0.00042,4]